[Event "Titled Tuesday Blitz November 29 Early 2022"]
[White "Paravyan, David"]
[Black "Timofeev, Artyom"]
[WhiteFideId "4194985"]
[BlackFideId "4140419"]
[WhiteElo "3051"]
[BlackElo "2860"]
[Result "1/2-1/2"]
[Round "09"]
[TimeControl "180+1"]
[Date "2022.11.29"]
[WhiteClock "0:00:06"]
[BlackClock "0:00:05"]

1. e4 {[%clk 0:03:00]}  c5 {[%clk 0:02:59]} 2. Nf3 {[%clk 0:03:00]}  Nc6 {[%clk 0:02:58]} 3. Nc3 {[%clk 0:03:00]}  e5 {[%clk 0:02:54]} 4. Bc4 {[%clk 0:02:59]}  d6 {[%clk 0:02:54]} 5. d3 {[%clk 0:02:59]}  Be7 {[%clk 0:02:54]} 6. a4 {[%clk 0:02:59]}  Nf6 {[%clk 0:02:51]} 7. Bg5 {[%clk 0:02:58]}  O-O {[%clk 0:02:48]} 8. Bxf6 {[%clk 0:02:58]}  Bxf6 {[%clk 0:02:48]} 9. Nd5 {[%clk 0:02:59]}  Nb4 {[%clk 0:02:38]} 10. c3 {[%clk 0:02:44]}  Nxd5 {[%clk 0:02:37]} 11. Bxd5 {[%clk 0:02:45]}  Rb8 {[%clk 0:02:35]} 12. O-O {[%clk 0:02:43]}  Be6 {[%clk 0:02:34]} 13. Bxe6 {[%clk 0:02:42]}  fxe6 {[%clk 0:02:34]} 14. b4 {[%clk 0:02:41]}  cxb4 {[%clk 0:02:30]} 15. cxb4 {[%clk 0:02:42]}  Kh8 {[%clk 0:02:29]} 16. Qb3 {[%clk 0:02:37]}  Qd7 {[%clk 0:02:28]} 17. Rfc1 {[%clk 0:02:35]}  a6 {[%clk 0:02:25]} 18. Rc3 {[%clk 0:02:32]}  Bd8 {[%clk 0:02:24]} 19. Rac1 {[%clk 0:02:31]}  a5 {[%clk 0:02:13]} 20. d4 {[%clk 0:02:23]}  axb4 {[%clk 0:02:08]} 21. Rd3 {[%clk 0:02:13]}  exd4 {[%clk 0:02:05]} 22. Nxd4 {[%clk 0:02:02]}  Bb6 {[%clk 0:02:03]} 23. Nf3 {[%clk 0:01:43]}  Qe7 {[%clk 0:01:55]} 24. Qxb4 {[%clk 0:01:38]}  Bc5 {[%clk 0:01:54]} 25. Qb5 {[%clk 0:01:37]}  b6 {[%clk 0:01:54]} 26. Rcd1 {[%clk 0:01:34]}  e5 {[%clk 0:01:48]} 27. h3 {[%clk 0:00:58]}  Ra8 {[%clk 0:01:45]} 28. Qb3 {[%clk 0:00:49]}  Qe8 {[%clk 0:01:37]} 29. Rxd6 {[%clk 0:00:35]}  Bxd6 {[%clk 0:01:35]} 30. Rxd6 {[%clk 0:00:36]}  Qxa4 {[%clk 0:01:32]} 31. Qxa4 {[%clk 0:00:29]}  Rxa4 {[%clk 0:01:32]} 32. Rxb6 {[%clk 0:00:30]}  Rxe4 {[%clk 0:01:30]} 33. Re6 {[%clk 0:00:30]}  Kg8 {[%clk 0:01:28]} 34. Rxe5 {[%clk 0:00:29]}  Rxe5 {[%clk 0:01:26]} 35. Nxe5 {[%clk 0:00:30]}  Ra8 {[%clk 0:01:26]} 36. g3 {[%clk 0:00:28]}  Kf8 {[%clk 0:01:25]} 37. Kg2 {[%clk 0:00:28]}  Ke7 {[%clk 0:01:25]} 38. h4 {[%clk 0:00:23]}  Ke6 {[%clk 0:01:24]} 39. Nf3 {[%clk 0:00:21]}  h6 {[%clk 0:01:22]} 40. Ng1 {[%clk 0:00:19]}  Ra2 {[%clk 0:01:21]} 41. Nh3 {[%clk 0:00:19]}  Kf5 {[%clk 0:01:21]} 42. Kf3 {[%clk 0:00:19]}  Ra3+ {[%clk 0:01:19]} 43. Kg2 {[%clk 0:00:20]}  Ke4 {[%clk 0:01:18]} 44. Nf4 {[%clk 0:00:18]}  Ra2 {[%clk 0:01:16]} 45. Ne6 {[%clk 0:00:18]}  Ra7 {[%clk 0:01:15]} 46. Nf4 {[%clk 0:00:19]}  Kf5 {[%clk 0:01:14]} 47. Nd5 {[%clk 0:00:19]}  Ra2 {[%clk 0:01:00]} 48. Nf4 {[%clk 0:00:16]}  Rd2 {[%clk 0:00:58]} 49. Nh5 {[%clk 0:00:13]}  g6 {[%clk 0:00:56]} 50. Nf4 {[%clk 0:00:13]}  Rd4 {[%clk 0:00:54]} 51. Ne2 {[%clk 0:00:08]}  Rc4 {[%clk 0:00:53]} 52. Ng1 {[%clk 0:00:08]}  Rc2 {[%clk 0:00:52]} 53. Nf3 {[%clk 0:00:08]}  Ke4 {[%clk 0:00:51]} 54. Ng1 {[%clk 0:00:08]}  Rc7 {[%clk 0:00:45]} 55. Nh3 {[%clk 0:00:08]}  Rf7 {[%clk 0:00:45]} 56. Ng1 {[%clk 0:00:08]}  Rf6 {[%clk 0:00:42]} 57. Nh3 {[%clk 0:00:08]}  Rf8 {[%clk 0:00:42]} 58. Ng1 {[%clk 0:00:08]}  Kd3 {[%clk 0:00:41]} 59. Nf3 {[%clk 0:00:08]}  Ke2 {[%clk 0:00:41]} 60. Ng1+ {[%clk 0:00:08]}  Ke1 {[%clk 0:00:40]} 61. Nf3+ {[%clk 0:00:08]}  Kd1 {[%clk 0:00:41]} 62. Ne5 {[%clk 0:00:08]}  Ke2 {[%clk 0:00:30]} 63. f4 {[%clk 0:00:08]}  Rg8 {[%clk 0:00:29]} 64. g4 {[%clk 0:00:06]}  Ke3 {[%clk 0:00:27]} 65. Kg3 {[%clk 0:00:06]}  Ke4 {[%clk 0:00:27]} 66. Nf7 {[%clk 0:00:06]}  h5 {[%clk 0:00:22]} 67. Ng5+ {[%clk 0:00:04]}  Kd5 {[%clk 0:00:21]} 68. Kf3 {[%clk 0:00:03]}  Rf8 {[%clk 0:00:19]} 69. gxh5 {[%clk 0:00:03]}  gxh5 {[%clk 0:00:19]} 70. Ne4 {[%clk 0:00:03]}  Ke6 {[%clk 0:00:17]} 71. Ng3 {[%clk 0:00:04]}  Rh8 {[%clk 0:00:17]} 72. Ke4 {[%clk 0:00:04]}  Kf6 {[%clk 0:00:17]} 73. Kf3 {[%clk 0:00:05]}  Kg6 {[%clk 0:00:17]} 74. f5+ {[%clk 0:00:04]}  Kh6 {[%clk 0:00:17]} 75. Kf4 {[%clk 0:00:04]}  Ra8 {[%clk 0:00:17]} 76. Ne4 {[%clk 0:00:04]}  Ra4 {[%clk 0:00:16]} 77. Ke5 {[%clk 0:00:03]}  Kg7 {[%clk 0:00:16]} 78. Kf4 {[%clk 0:00:02]}  Kf7 {[%clk 0:00:15]} 79. Ke5 {[%clk 0:00:02]}  Kg7 {[%clk 0:00:14]} 80. Kf4 {[%clk 0:00:03]}  Rb4 {[%clk 0:00:15]} 81. Ke5 {[%clk 0:00:03]}  Rb1 {[%clk 0:00:14]} 82. Kf4 {[%clk 0:00:03]}  Rg1 {[%clk 0:00:14]} 83. Ng3 {[%clk 0:00:03]}  Kh6 {[%clk 0:00:14]} 84. Kf3 {[%clk 0:00:03]}  Rb1 {[%clk 0:00:13]} 85. Kf4 {[%clk 0:00:03]}  Rb4+ {[%clk 0:00:13]} 86. Ne4 {[%clk 0:00:04]}  Ra4 {[%clk 0:00:14]} 87. Ke5 {[%clk 0:00:04]}  Ra1 {[%clk 0:00:14]} 88. Ng3 {[%clk 0:00:02]}  Ra3 {[%clk 0:00:13]} 89. Kf4 {[%clk 0:00:02]}  Rb3 {[%clk 0:00:13]} 90. Ne4 {[%clk 0:00:01]}  Rh3 {[%clk 0:00:13]} 91. Ke5 {[%clk 0:00:01]}  Rxh4 {[%clk 0:00:13]} 92. Nd6 {[%clk 0:00:02]}  Rh1 {[%clk 0:00:13]} 93. f6 {[%clk 0:00:02]}  Kg6 {[%clk 0:00:13]} 94. f7 {[%clk 0:00:02]}  Rf1 {[%clk 0:00:13]} 95. Ke4 {[%clk 0:00:01]}  h4 {[%clk 0:00:11]} 96. Nc4 {[%clk 0:00:02]}  Re1+ {[%clk 0:00:08]} 97. Kf3 {[%clk 0:00:02]}  Kxf7 {[%clk 0:00:08]} 98. Ne3 {[%clk 0:00:02]}  Kg6 {[%clk 0:00:06]} 99. Ng2 {[%clk 0:00:02]}  Rf1+ {[%clk 0:00:07]} 100. Kg4 {[%clk 0:00:03]}  Rg1 {[%clk 0:00:07]} 101. Kh3 {[%clk 0:00:02]}  Kh5 {[%clk 0:00:07]} 102. Nf4+ {[%clk 0:00:02]}  Kg5 {[%clk 0:00:07]} 103. Ne6+ {[%clk 0:00:03]}  Kf5 {[%clk 0:00:06]} 104. Nd4+ {[%clk 0:00:03]}  Kg5 {[%clk 0:00:05]} 105. Nf3+ {[%clk 0:00:03]}  Kh5 {[%clk 0:00:04]} 106. Nxg1 {[%clk 0:00:04]}  Kg5 {[%clk 0:00:04]} 107. Nf3+ {[%clk 0:00:05]}  Kh5 {[%clk 0:00:05]} 108. Nxh4 {[%clk 0:00:06]} 1/2-1/2


[Site "https://www.chess.com"]

[Event "Titled Tuesday Blitz November 29 Early 2022"]
[White "Postny, Evgeny"]
[Black "Postnikov, Daniil"]
[WhiteFideId "2804344"]
[BlackFideId "4166329"]
[WhiteElo "2476"]
[BlackElo "2261"]
[Result "1-0"]
[Round "09"]
[TimeControl "180+1"]
[Date "2022.11.29"]
[WhiteClock "0:00:28"]
[BlackClock "0:00:04"]

1. e4 {[%clk 0:02:59]}  e6 {[%clk 0:02:59]} 2. d4 {[%clk 0:02:56]}  d5 {[%clk 0:02:58]} 3. Nd2 {[%clk 0:02:57]}  c5 {[%clk 0:02:57]} 4. Ngf3 {[%clk 0:02:56]}  cxd4 {[%clk 0:02:52]} 5. Nxd4 {[%clk 0:02:57]}  Nf6 {[%clk 0:02:52]} 6. exd5 {[%clk 0:02:56]}  Qxd5 {[%clk 0:02:51]} 7. N2f3 {[%clk 0:02:51]}  Bc5 {[%clk 0:02:44]} 8. Be2 {[%clk 0:02:44]}  O-O {[%clk 0:02:42]} 9. O-O {[%clk 0:02:44]}  a6 {[%clk 0:02:31]} 10. Nb3 {[%clk 0:02:41]}  Bb6 {[%clk 0:02:27]} 11. c4 {[%clk 0:02:39]}  Qf5 {[%clk 0:02:20]} 12. Qd3 {[%clk 0:02:26]}  Qxd3 {[%clk 0:02:15]} 13. Bxd3 {[%clk 0:02:26]}  Nc6 {[%clk 0:02:16]} 14. c5 {[%clk 0:02:23]}  Bc7 {[%clk 0:02:16]} 15. Bd2 {[%clk 0:02:08]}  e5 {[%clk 0:02:14]} 16. Bc4 {[%clk 0:02:07]}  Bg4 {[%clk 0:02:13]} 17. Bc3 {[%clk 0:02:01]}  Ne4 {[%clk 0:02:05]} 18. Bd5 {[%clk 0:01:45]}  Bxf3 {[%clk 0:02:05]} 19. gxf3 {[%clk 0:01:45]}  Nxc3 {[%clk 0:02:05]} 20. bxc3 {[%clk 0:01:46]}  Rad8 {[%clk 0:02:04]} 21. c4 {[%clk 0:01:45]}  Rb8 {[%clk 0:01:38]} 22. Rab1 {[%clk 0:01:40]}  Rfd8 {[%clk 0:01:34]} 23. Rfd1 {[%clk 0:01:37]}  Kf8 {[%clk 0:01:31]} 24. Nd2 {[%clk 0:01:30]}  Nd4 {[%clk 0:01:07]} 25. Kf1 {[%clk 0:01:28]}  b6 {[%clk 0:00:58]} 26. c6 {[%clk 0:01:18]}  f5 {[%clk 0:00:50]} 27. Nb3 {[%clk 0:01:13]}  Nxb3 {[%clk 0:00:49]} 28. axb3 {[%clk 0:01:09]}  a5 {[%clk 0:00:46]} 29. Be6 {[%clk 0:00:59]}  g6 {[%clk 0:00:45]} 30. Bd7 {[%clk 0:00:58]}  Ke7 {[%clk 0:00:43]} 31. Rd5 {[%clk 0:00:58]}  Rf8 {[%clk 0:00:40]} 32. Rbd1 {[%clk 0:00:53]}  Rf6 {[%clk 0:00:40]} 33. Bxf5 {[%clk 0:00:47]}  Rxc6 {[%clk 0:00:39]} 34. Rd7+ {[%clk 0:00:46]}  Kf6 {[%clk 0:00:39]} 35. Be4 {[%clk 0:00:45]}  Rc5 {[%clk 0:00:39]} 36. Rxh7 {[%clk 0:00:43]}  Rg8 {[%clk 0:00:10]} 37. Rdd7 {[%clk 0:00:39]}  Bd8 {[%clk 0:00:11]} 38. h4 {[%clk 0:00:35]}  Rf8 {[%clk 0:00:08]} 39. Bd5 {[%clk 0:00:32]}  Kf5 {[%clk 0:00:06]} 40. Rxd8 {[%clk 0:00:28]}  Rxd8 {[%clk 0:00:04]} 41. Rf7# {[%clk 0:00:28]} 1-0


[Site "https://www.chess.com"]

[Event "Titled Tuesday Blitz November 29 Early 2022"]
[White "Przybylski, Wojciech"]
[Black "Van Osch, Mees"]
[WhiteFideId "1117599"]
[BlackFideId "1035967"]
[WhiteElo "2221"]
[BlackElo "2324"]
[Result "0-1"]
[Round "09"]
[TimeControl "180+1"]
[Date "2022.11.30"]
[WhiteClock "0:00:01"]
[BlackClock "0:01:08"]

1. e4 {[%clk 0:03:00]}  e6 {[%clk 0:02:52]} 2. d4 {[%clk 0:02:57]}  d5 {[%clk 0:02:51]} 3. Nc3 {[%clk 0:02:42]}  Nf6 {[%clk 0:02:43]} 4. Bg5 {[%clk 0:02:40]}  Be7 {[%clk 0:02:22]} 5. Bd3 {[%clk 0:02:28]}  dxe4 {[%clk 0:02:21]} 6. Nxe4 {[%clk 0:02:27]}  Nxe4 {[%clk 0:02:21]} 7. Bxe7 {[%clk 0:02:25]}  Nxf2 {[%clk 0:02:11]} 8. Bxd8 {[%clk 0:02:18]}  Nxd1 {[%clk 0:02:11]} 9. Bxc7 {[%clk 0:02:14]}  Nxb2 {[%clk 0:02:11]} 10. Be4 {[%clk 0:01:54]}  O-O {[%clk 0:02:03]} 11. Nf3 {[%clk 0:01:35]}  Na6 {[%clk 0:02:02]} 12. Bf4 {[%clk 0:01:22]}  Na4 {[%clk 0:01:52]} 13. Bd2 {[%clk 0:01:16]}  Nb6 {[%clk 0:01:44]} 14. Bd3 {[%clk 0:01:09]}  Bd7 {[%clk 0:01:43]} 15. Ne5 {[%clk 0:00:59]}  Ba4 {[%clk 0:01:39]} 16. O-O {[%clk 0:00:51]}  f6 {[%clk 0:01:39]} 17. Nf3 {[%clk 0:00:39]}  Rac8 {[%clk 0:01:39]} 18. Rac1 {[%clk 0:00:36]}  Nc4 {[%clk 0:01:38]} 19. Bf4 {[%clk 0:00:33]}  Nb4 {[%clk 0:01:35]} 20. Be4 {[%clk 0:00:31]}  Bc6 {[%clk 0:01:33]} 21. Rfe1 {[%clk 0:00:30]}  Bxe4 {[%clk 0:01:28]} 22. Rxe4 {[%clk 0:00:30]}  Rfe8 {[%clk 0:01:28]} 23. Rb1 {[%clk 0:00:24]}  Nd5 {[%clk 0:01:19]} 24. Rxb7 {[%clk 0:00:03]}  f5 {[%clk 0:01:19]} 25. Be5 {[%clk 0:00:03]}  fxe4 {[%clk 0:01:18]} 26. Ng5 {[%clk 0:00:02]}  Re7 {[%clk 0:01:13]} 27. Rb1 {[%clk 0:00:01]}  Nc3 {[%clk 0:01:10]} 28. Re1 {[%clk 0:00:01]}  e3 {[%clk 0:01:09]} 29. d5 {[%clk 0:00:01]}  Nxe5 {[%clk 0:01:08]} 0-1


[Site "https://www.chess.com"]

[Event "Titled Tuesday Blitz November 29 Early 2022"]
[White "Rian, Kapriaga"]
[Black "Kuznetsov, Mikhail"]
[WhiteFideId "7103263"]
[BlackFideId "4117190"]
[WhiteElo "2256"]
[BlackElo "1981"]
[Result "1-0"]
[Round "09"]
[TimeControl "180+1"]
[Date "2022.11.30"]
[WhiteClock "0:00:10"]
[BlackClock "0:00:07"]

1. d4 {[%clk 0:03:00]}  Nf6 {[%clk 0:02:58]} 2. Nf3 {[%clk 0:03:00]}  g6 {[%clk 0:02:54]} 3. Bg5 {[%clk 0:02:58]}  Ne4 {[%clk 0:02:53]} 4. Bh4 {[%clk 0:02:57]}  Bg7 {[%clk 0:02:53]} 5. Nbd2 {[%clk 0:02:56]}  d5 {[%clk 0:02:53]} 6. e3 {[%clk 0:02:56]}  O-O {[%clk 0:02:47]} 7. Bd3 {[%clk 0:02:55]}  c5 {[%clk 0:02:45]} 8. c3 {[%clk 0:02:50]}  Bf5 {[%clk 0:02:42]} 9. Be2 {[%clk 0:02:36]}  Nxd2 {[%clk 0:02:35]} 10. Qxd2 {[%clk 0:02:32]}  Nd7 {[%clk 0:02:30]} 11. O-O {[%clk 0:02:31]}  cxd4 {[%clk 0:02:18]} 12. exd4 {[%clk 0:02:16]}  Bf6 {[%clk 0:02:08]} 13. Rfe1 {[%clk 0:02:11]}  Bg4 {[%clk 0:02:00]} 14. Bg5 {[%clk 0:01:49]}  Bxf3 {[%clk 0:01:52]} 15. Bxf3 {[%clk 0:01:48]}  Bxg5 {[%clk 0:01:51]} 16. Qxg5 {[%clk 0:01:47]}  e6 {[%clk 0:01:52]} 17. Qf4 {[%clk 0:01:38]}  b5 {[%clk 0:01:47]} 18. a3 {[%clk 0:01:32]}  Nb6 {[%clk 0:01:43]} 19. h4 {[%clk 0:01:26]}  Qb8 {[%clk 0:01:35]} 20. Qf6 {[%clk 0:01:21]}  Nd7 {[%clk 0:01:29]} 21. Qg5 {[%clk 0:01:18]}  Qd8 {[%clk 0:01:28]} 22. Qf4 {[%clk 0:01:02]}  Qf6 {[%clk 0:01:27]} 23. Qg4 {[%clk 0:00:43]}  h5 {[%clk 0:01:24]} 24. Qg3 {[%clk 0:00:41]}  Rfc8 {[%clk 0:01:14]} 25. Bxh5 {[%clk 0:00:35]}  Nf8 {[%clk 0:01:07]} 26. Bf3 {[%clk 0:00:32]}  a5 {[%clk 0:01:02]} 27. Re5 {[%clk 0:00:29]}  b4 {[%clk 0:00:57]} 28. axb4 {[%clk 0:00:26]}  axb4 {[%clk 0:00:57]} 29. Rxa8 {[%clk 0:00:24]}  Rxa8 {[%clk 0:00:58]} 30. h5 {[%clk 0:00:20]}  bxc3 {[%clk 0:00:50]} 31. bxc3 {[%clk 0:00:20]}  Ra1+ {[%clk 0:00:44]} 32. Kh2 {[%clk 0:00:20]}  Rc1 {[%clk 0:00:43]} 33. hxg6 {[%clk 0:00:19]}  Nxg6 {[%clk 0:00:44]} 34. Bh5 {[%clk 0:00:17]}  Kg7 {[%clk 0:00:30]} 35. Bxg6 {[%clk 0:00:16]}  fxg6 {[%clk 0:00:31]} 36. Re3 {[%clk 0:00:15]}  Qf5 {[%clk 0:00:21]} 37. Qc7+ {[%clk 0:00:15]}  Kh6 {[%clk 0:00:16]} 38. Rh3+ {[%clk 0:00:14]}  Kg5 {[%clk 0:00:14]} 39. Qe7+ {[%clk 0:00:13]}  Qf6 {[%clk 0:00:07]} 40. Rg3+ {[%clk 0:00:13]}  Kf5 {[%clk 0:00:07]} 41. Rf3+ {[%clk 0:00:13]}  Ke4 {[%clk 0:00:08]} 42. Qxf6 {[%clk 0:00:12]}  Rh1+ {[%clk 0:00:06]} 43. Kxh1 {[%clk 0:00:10]}  g5 {[%clk 0:00:07]} 44. Qg6# {[%clk 0:00:10]} 1-0


[Site "https://www.chess.com"]

[Event "Titled Tuesday Blitz November 29 Early 2022"]
[White "Ronka, Erik"]
[Black "Costachi, Mihnea"]
[WhiteFideId "505080"]
[BlackFideId "1217518"]
[WhiteElo "2264"]
[BlackElo "2424"]
[Result "0-1"]
[Round "09"]
[TimeControl "180+1"]
[Date "2022.11.30"]
[WhiteClock "0:00:11"]
[BlackClock "0:00:46"]

1. e4 {[%clk 0:03:00]}  e5 {[%clk 0:02:57]} 2. f4 {[%clk 0:03:00]}  Bc5 {[%clk 0:02:54]} 3. Nf3 {[%clk 0:03:00]}  d6 {[%clk 0:02:55]} 4. Bc4 {[%clk 0:02:54]}  Nf6 {[%clk 0:02:55]} 5. d3 {[%clk 0:02:54]}  Nc6 {[%clk 0:02:55]} 6. Nc3 {[%clk 0:02:53]}  Be6 {[%clk 0:02:56]} 7. Bb5 {[%clk 0:02:50]}  O-O {[%clk 0:02:45]} 8. Bxc6 {[%clk 0:02:40]}  bxc6 {[%clk 0:02:45]} 9. f5 {[%clk 0:02:29]}  Bc8 {[%clk 0:02:41]} 10. Qe2 {[%clk 0:02:29]}  Rb8 {[%clk 0:02:32]} 11. b3 {[%clk 0:02:24]}  d5 {[%clk 0:02:27]} 12. Na4 {[%clk 0:02:01]}  Bb4+ {[%clk 0:02:11]} 13. Bd2 {[%clk 0:01:58]}  Ba6 {[%clk 0:01:53]} 14. Bxb4 {[%clk 0:01:46]}  Rxb4 {[%clk 0:01:53]} 15. Nc5 {[%clk 0:01:14]}  dxe4 {[%clk 0:01:40]} 16. Nxa6 {[%clk 0:01:14]}  exf3 {[%clk 0:01:39]} 17. Qe3 {[%clk 0:00:33]}  fxg2 {[%clk 0:01:32]} 18. Rg1 {[%clk 0:00:31]}  Ng4 {[%clk 0:01:25]} 19. Qg3 {[%clk 0:00:21]}  Qd4 {[%clk 0:01:22]} 20. O-O-O {[%clk 0:00:20]}  Qf4+ {[%clk 0:01:10]} 21. Qxf4 {[%clk 0:00:20]}  Rxf4 {[%clk 0:01:11]} 22. Rxg2 {[%clk 0:00:19]}  Ne3 {[%clk 0:01:11]} 23. Rdg1 {[%clk 0:00:19]}  Nxg2 {[%clk 0:01:10]} 24. Rxg2 {[%clk 0:00:19]}  Rc8 {[%clk 0:01:07]} 25. Nc5 {[%clk 0:00:18]}  Rxf5 {[%clk 0:01:04]} 26. Kd2 {[%clk 0:00:18]}  h5 {[%clk 0:01:02]} 27. Ke3 {[%clk 0:00:18]}  Rf4 {[%clk 0:01:01]} 28. a3 {[%clk 0:00:16]}  a5 {[%clk 0:01:01]} 29. c3 {[%clk 0:00:15]}  Rh4 {[%clk 0:00:58]} 30. b4 {[%clk 0:00:14]}  axb4 {[%clk 0:00:58]} 31. cxb4 {[%clk 0:00:15]}  Ra8 {[%clk 0:00:57]} 32. Ra2 {[%clk 0:00:15]}  Rxb4 {[%clk 0:00:56]} 33. Rc2 {[%clk 0:00:12]}  Rxa3 {[%clk 0:00:54]} 34. Ne4 {[%clk 0:00:12]}  Rd4 {[%clk 0:00:53]} 35. Nf2 {[%clk 0:00:11]}  Rd6 {[%clk 0:00:52]} 36. Rb2 {[%clk 0:00:11]}  f5 {[%clk 0:00:50]} 37. Rb7 {[%clk 0:00:11]}  e4 {[%clk 0:00:49]} 38. Rxc7 {[%clk 0:00:11]}  g5 {[%clk 0:00:49]} 39. h4 {[%clk 0:00:09]}  Rdxd3+ {[%clk 0:00:48]} 40. Ke2 {[%clk 0:00:09]}  Ra2+ {[%clk 0:00:47]} 41. Kf1 {[%clk 0:00:09]}  Rf3 {[%clk 0:00:47]} 42. Kg1 {[%clk 0:00:09]}  Rfxf2 {[%clk 0:00:46]} 43. hxg5 {[%clk 0:00:10]}  Rfc2 {[%clk 0:00:46]} 44. Kh1 {[%clk 0:00:11]}  Rc1# {[%clk 0:00:46]} 0-1


[Site "https://www.chess.com"]

[Event "Titled Tuesday Blitz November 29 Early 2022"]
[White "Rose, Felix"]
[Black "Gjestemoen-VonHirsch, Andre"]
[WhiteFideId "5105722"]
[BlackFideId "1539531"]
[WhiteElo "2039"]
[BlackElo "2198"]
[Result "1-0"]
[Round "09"]
[TimeControl "180+1"]
[Date "2022.11.30"]
[WhiteClock "0:00:51"]
[BlackClock "0:00:15"]

1. e4 {[%clk 0:03:00]}  g6 {[%clk 0:02:58]} 2. d4 {[%clk 0:03:00]}  Bg7 {[%clk 0:02:58]} 3. Nf3 {[%clk 0:03:00]}  c5 {[%clk 0:02:59]} 4. dxc5 {[%clk 0:02:59]}  Qa5+ {[%clk 0:02:59]} 5. c3 {[%clk 0:03:00]}  Qxc5 {[%clk 0:02:59]} 6. Na3 {[%clk 0:03:00]}  Nf6 {[%clk 0:02:48]} 7. Nb5 {[%clk 0:02:58]}  O-O {[%clk 0:02:28]} 8. Be3 {[%clk 0:02:53]}  Qh5 {[%clk 0:02:27]} 9. Nc7 {[%clk 0:02:36]}  Nxe4 {[%clk 0:02:18]} 10. Nxa8 {[%clk 0:02:30]}  Nxc3 {[%clk 0:02:12]} 11. bxc3 {[%clk 0:02:22]}  Bxc3+ {[%clk 0:02:13]} 12. Bd2 {[%clk 0:02:21]}  Bxa1 {[%clk 0:02:04]} 13. Qxa1 {[%clk 0:02:21]}  Nc6 {[%clk 0:01:48]} 14. Be2 {[%clk 0:02:13]}  d5 {[%clk 0:01:44]} 15. O-O {[%clk 0:01:38]}  Bg4 {[%clk 0:01:20]} 16. Nc7 {[%clk 0:01:36]}  d4 {[%clk 0:01:11]} 17. h3 {[%clk 0:01:21]}  Bxf3 {[%clk 0:00:59]} 18. Bxf3 {[%clk 0:01:20]}  Qe5 {[%clk 0:01:00]} 19. Nd5 {[%clk 0:01:14]}  Rd8 {[%clk 0:00:37]} 20. Re1 {[%clk 0:01:11]}  Qd6 {[%clk 0:00:30]} 21. Bf4 {[%clk 0:01:05]}  e5 {[%clk 0:00:28]} 22. Bg5 {[%clk 0:01:00]}  Rf8 {[%clk 0:00:18]} 23. Nf6+ {[%clk 0:00:57]}  Kg7 {[%clk 0:00:17]} 24. Bxc6 {[%clk 0:00:55]}  bxc6 {[%clk 0:00:16]} 25. Ng4 {[%clk 0:00:54]}  f6 {[%clk 0:00:16]} 26. Bh6+ {[%clk 0:00:51]}  Kf7 {[%clk 0:00:14]} 27. Bxf8 {[%clk 0:00:51]}  Kxf8 {[%clk 0:00:15]} 1-0


[Site "https://www.chess.com"]

[Event "Titled Tuesday Blitz November 29 Early 2022"]
[White "Rosen, Eric"]
[Black "Shipov, Sergei"]
[WhiteFideId "2032562"]
[BlackFideId "4113624"]
[WhiteElo "2362"]
[BlackElo "2811"]
[Result "1-0"]
[Round "09"]
[TimeControl "180+1"]
[Date "2022.11.29"]
[WhiteClock "0:00:04"]
[BlackClock "0:00:15"]

1. d4 {[%clk 0:03:00]}  d5 {[%clk 0:02:59]} 2. Bf4 {[%clk 0:03:01]}  Nf6 {[%clk 0:02:59]} 3. e3 {[%clk 0:03:01]}  c5 {[%clk 0:02:59]} 4. Nf3 {[%clk 0:03:02]}  Nc6 {[%clk 0:03:00]} 5. Nbd2 {[%clk 0:03:02]}  Nh5 {[%clk 0:02:58]} 6. dxc5 {[%clk 0:03:00]}  Nxf4 {[%clk 0:02:57]} 7. exf4 {[%clk 0:03:01]}  g6 {[%clk 0:02:50]} 8. c3 {[%clk 0:02:55]}  Bg7 {[%clk 0:02:50]} 9. Bd3 {[%clk 0:02:54]}  O-O {[%clk 0:02:50]} 10. O-O {[%clk 0:02:55]}  Qc7 {[%clk 0:02:32]} 11. g3 {[%clk 0:02:54]}  Nb8 {[%clk 0:02:29]} 12. b4 {[%clk 0:02:23]}  Bxc3 {[%clk 0:02:27]} 13. Rb1 {[%clk 0:02:23]}  a5 {[%clk 0:02:24]} 14. a3 {[%clk 0:02:24]}  axb4 {[%clk 0:02:24]} 15. axb4 {[%clk 0:02:25]}  Bh3 {[%clk 0:02:20]} 16. Re1 {[%clk 0:02:19]}  Bg4 {[%clk 0:02:20]} 17. Be2 {[%clk 0:02:03]}  Nc6 {[%clk 0:02:04]} 18. Ne5 {[%clk 0:01:27]}  Bxe2 {[%clk 0:01:53]} 19. Qxe2 {[%clk 0:01:27]}  Ra2 {[%clk 0:01:53]} 20. Nxc6 {[%clk 0:01:13]}  bxc6 {[%clk 0:01:49]} 21. Red1 {[%clk 0:01:13]}  Rb8 {[%clk 0:01:46]} 22. Qd3 {[%clk 0:00:47]}  Bxb4 {[%clk 0:01:46]} 23. Nb3 {[%clk 0:00:47]}  e5 {[%clk 0:01:40]} 24. fxe5 {[%clk 0:00:42]}  Qxe5 {[%clk 0:01:40]} 25. Nd4 {[%clk 0:00:38]}  Bxc5 {[%clk 0:01:36]} 26. Nxc6 {[%clk 0:00:25]}  Qf6 {[%clk 0:00:21]} 27. Rxb8+ {[%clk 0:00:21]}  Kg7 {[%clk 0:00:21]} 28. Rf1 {[%clk 0:00:05]}  Bxf2+ {[%clk 0:00:19]} 29. Kh1 {[%clk 0:00:04]}  Qxc6 {[%clk 0:00:18]} 30. Qf3 {[%clk 0:00:05]}  Qf6 {[%clk 0:00:15]} 31. Qxf6+ {[%clk 0:00:04]}  Kxf6 {[%clk 0:00:15]} 32. Kg2 {[%clk 0:00:04]} 1-0


[Site "https://www.chess.com"]